Cogmind - Beta 14 @@@ ROGUE MODE // 2024.11.21 @ 16:35:22 Player: skye Result: Destroyed by D-53 Grenadier with Mini Grenade Launcher Performance ------------- Evolutions (0) 0 Regions Visited (2) 400 Robots Destroyed (12) 60 Value Destroyed (194) 194 Prototype IDs (0) 0 Alien Tech Used (0) 0 Bonus (0) 0 TOTAL SCORE: 654 Bonus ------- None Cogmind --------- Core Integrity 0/250 Matter 265/300 Energy 63/100 System Corruption 0% Temperature Cool (30) Movement Core (100) Ox1 Location -10/Mines Parts ------- > --- POWER (1) -------- (None) > --- PROPULSION (2) --- (None) > --- UTILITY (2) ------ Small Storage Unit Sensor Array > --- WEAPON (2) ------- (None) > --- INVENTORY (8) ---- Ion Engine Weapon Shielding Hacking Suite Light Assault Rifle Assault Cannon Peak State ------------ > --- POWER ------------ Light Ion Engine > --- PROPULSION ------- Hover Unit Hover Unit > --- UTILITY ---------- Small Storage Unit Sensor Array > --- WEAPON ----------- Light Assault Rifle Assault Cannon > --- INVENTORY -------- Ion Engine Wheel Compact Wheel Weapon Shielding Hacking Suite Beam Cannon Grenade Launcher Datajack [Rating: 10] Favorites ----------- Power Ion Engine Engine Ion Engine Propulsion Hover Unit Leg Aluminum Leg Wheel Compact Wheel Hover Unit Hover Unit Utility Small Storage Unit Device Sensor Array Storage Small Storage Unit Protection Weapon Shielding Weapon Light Assault Rifle Energy Gun Medium Laser Energy Cannon Beam Cannon Ballistic Gun Light Assault Rifle Ballistic Cannon Assault Cannon Launcher Grenade Launcher Special Melee Weapon Datajack Build | -11 -10 -10 ------- Run | Yrd Mat Min Slots Evolved . | . . . Power . | . . . Propulsion . | . . . Utility . | . . . Weapon . | . . . Parts Attached 17 | 2 8 7 Power 1 | . 1 . Engine 1 | . 1 . Core . | . . . Reactor . | . . . Propulsion 7 | 2 3 2 Treads . | . . . Leg . | . . . Wheel 4 | 2 . 2 Hover 3 | . 3 . Flight . | . . . Utility 3 | . 2 1 Device 2 | . 1 1 Storage . | . . . Processor . | . . . Hackware . | . . . Protection 1 | . 1 . Artifact . | . . . Weapon 6 | . 2 4 Energy Gun 1 | . 1 . Energy Cannon 1 | . . 1 Ballistic Gun . | . . . Ballistic Cannon 1 | . . 1 Launcher 2 | . 1 1 Special Weapon . | . . . Impact Weapon . | . . . Slashing Weapon . | . . . Piercing Weapon . | . . . Special Melee Weapon 1 | . . 1 Unidentified Prototypes . | . . . Parts Lost 8 | . . 8 Power 1 | . . 1 Propulsion 4 | . . 4 Utility . | . . . Weapon 3 | . . 3 Highest Loss Streak 8 | . . 8 To Critical Strikes . | . . . Average Slot Usage (%) 97 | . 99 94 Engine 13 | . 14 12 Wheel 14 | . 19 1 Hover 13 | . 8 25 Device 6 | . 4 14 Storage 14 | . 14 14 Protection 6 | . 8 . Energy Gun 4 | . 5 1 Ballistic Gun 11 | . 14 5 Ballistic Cannon 2 | . . 7 Launcher 8 | . 8 7 Special Melee Weapon 1 | . . 3 Peak Build Rating 10 | 6 8 10 Average Rating 7 | 6 7 8 On Entrance 6 | 6 6 8 Naked Turns . | . . . Heaviest Build 17 | 13 15 17 Greatest Support 26 | 26 26 12 Greatest Overweight (x) 4 | . 2 4 Average Overweight (x) . | . . . Largest Inventory Capacity 8 | 8 8 8 Average Capacity 8 | 8 8 8 Most Carried 8 | 6 8 8 Average Carried 7 | 6 7 7 Final Capacity 8 | 8 8 8 Final Carried 8 | 6 8 5 Class Distribution -------------------- 91% | Mutant 8% | Scavenger-Mutant Dominant Class ---------------- Mutant | -10/Materials Mutant | -10/Mines Resources | -11 -10 -10 ----------- Run | Yrd Mat Min Matter Collected 400 | 192 152 56 Remotely . | . . . Salvage Created 204 | . 148 56 Parts 20 | . 19 1 Haulers Intercepted . | . . . Recyclers Shooed . | . . . Parts Field Recycled . | . . . Retrieved Matter . | . . . Parts Self-Destructed . | . . . Prevented . | . . . Kills | -11 -10 -10 ------- Run | Yrd Mat Min Combat Hostiles Destroyed 6 | . 4 2 AOE 6 | . 4 2 Classes Destroyed 7 | . 7 . Worker 1 | . 1 . Builder 2 | . 2 . Recycler 1 | . 1 . Operator 1 | . 1 . Watcher 1 | . 1 . Swarmer 3 | . 3 . Grunt 3 | . 1 2 Best Kill Streak 8 | . 8 2 Combat Bots Only 4 | . 4 2 Max Kills in Single Turn 4 | . 4 2 Gunslinging . | . . . Exploded 2 | . 2 2 Melee . | . . . Uniques/NPCs Destroyed . | . . . Combat | -11 -10 -10 -------- Run | Yrd Mat Min Hostile Shots Fired 32 | . 7 25 Missed 10 | . 5 5 Damage Taken 751 | . 18 733 Core 258 | . . 258 Absorbed by Shields . | . . . Core Remaining (%) 100 | 100 . . Volleys Fired 36 | . 27 9 Largest 2 | . 1 2 Hottest 64 | . 30 64 Shots Fired 38 | . 27 11 Gun 25 | . 23 2 Cannon 6 | . . 6 Launcher 7 | . 4 3 Special . | . . . Kinetic 27 | . 23 4 Thermal 4 | . . 4 Explosive 7 | . 4 3 Electromagnetic . | . . . Robot Hit Streak 4 | . 3 4 Robot Miss Streak 3 | . 3 2 Penetration Max . | . . . Secondary Targets . | . . . Shots Hit Robots 21 | . 15 6 Core Hits 24 | . 19 5 Critical Kills . | . . . Critical Parts Destroyed . | . . . Critical Strikes . | . . . Melee Attacks . | . . . Impact . | . . . Slashing . | . . . Piercing . | . . . Sneak Attacks . | . . . Combat Hostiles . | . . . Follow-up Attacks . | . . . Damage Inflicted 677 | . 407 270 Guns 118 | . 112 6 Cannons 35 | . . 35 Explosions 524 | . 295 229 Melee . | . . . Ramming . | . . . Kinetic 118 | . 112 6 Thermal 35 | . . 35 Explosive 524 | . 295 229 Electromagnetic . | . . . Impact . | . . . Slashing . | . . . Piercing . | . . . Highest Corruption . | . . . Average Corruption . | . . . Corruption Purged . | . . . Corruption Blocked . | . . . Overload Shots . | . . . Overflow Damage . | . . . Projectiles . | . . . Explosions . | . . . Melee . | . . . Knockbacks . | . . . Impact . | . . . Kinetic . | . . . Secondary . | . . . Self-Inflicted Damage 54 | . . 54 Shots 3 | . . 3 Rammed . | . . . Targets Rammed . | . . . Kicked . | . . . Crushed . | . . . Highest Temperature 59 | . . 59 Average Temperature 30 | . . 30 Received Heat Transfer 72 | . 6 66 Siege Activations . | . . . Robots Corrupted . | . . . Combat Hostiles . | . . . Parts Fried . | . . . Impact Corruptions . | . . . Robots Melted . | . . . Combat Hostiles . | . . . Parts Melted . | . . . Heat Transferred 74 | . . 74 Parts Sabotaged . | . . . Parts Stolen . | . . . Parts Stripped . | . . . Power Chain Reactions . | . . . Alert | -11 -10 -10 ------- Run | Yrd Mat Min Peak Influence 231 | . 231 166 Initial 90 | . . 90 Average 156 | . 167 133 Maximum Alert Level 1 | . 1 . Low Security (%) 67 | 100 54 100 Level 1 32 | . 45 . Level 2 . | . . . Level 3 . | . . . Level 4 . | . . . Level 5 . | . . . High Security . | . . . Max Security . | . . . Squads Dispatched 2 | . 2 . Investigation . | . . . Extermination . | . . . Reinforcement 2 | . 2 . Assault . | . . . Garrison . | . . . Intercept . | . . . Searches Triggered . | . . . Construction Impeded . | . . . Haulers Reinforced . | . . . Active Scanning Responses . | . . . Cargo Convoy Interrupts . | . . . Stealth | -11 -10 -10 --------- Run | Yrd Mat Min Distress Signals . | . . . Communications Jammed . | . . . Distress Signals . | . . . Times Spotted 18 | . 14 4 Peak Tracking Total 4 | . 4 2 Tactical Retreats . | . . . Traps | -11 -10 -10 ------- Run | Yrd Mat Min Traps Triggered 1 | . . 1 Indirectly . | . . . Trap Hack Attempts . | . . . Triggered . | . . . Disarmed . | . . . Reprogrammed . | . . . Reused . | . . . Traps Extracted . | . . . Installed . | . . . Triggered . | . . . Machines | -11 -10 -10 ---------- Run | Yrd Mat Min Machines Disabled . | . . . Max in Single Turn . | . . . Machines Repaired . | . . . Machines Dismantled . | . . . Machines Sabotaged . | . . . Overloaded Fab Kills . | . . . Hacking | -11 -10 -10 --------- Run | Yrd Mat Min Machines Accessed 1 | . . 1 Terminals . | . . . Fabricators . | . . . Repair Stations . | . . . Recycling Units . | . . . Scanalyzers . | . . . Garrison Access . | . . . Total Hacks 1 | . . 1 Successful 1 | . . 1 Failed . | . . . Catastrophic . | . . . Database Lockouts . | . . . Manual . | . . . Terminals . | . . . Fabricators . | . . . Repair Stations . | . . . Recycling Units . | . . . Scanalyzers . | . . . Garrison Access . | . . . Terminal Hacks 1 | . . 1 Open Door 1 | . . 1 Fabricator Hacks . | . . . Repair Station Hacks . | . . . Recycling Unit Hacks . | . . . Scanalyzer . | . . . Garrison Access Hacks . | . . . Unauthorized Hacks . | . . . Terminals . | . . . Fabricators . | . . . Repair Stations . | . . . Recycling Units . | . . . Scanalyzers . | . . . Garrison Access . | . . . Data Cores Recovered . | . . . Used . | . . . Hacking Detections . | . . . Full Trace Events . | . . . Feedback Events . | . . . Feedback Blocked . | . . . Robot Schematics Acquired . | . . . Robots Built . | . . . Authchips . | . . . Time . | . . . Total Robot Build Rating . | . . . Part Schematics Acquired . | . . . Parts Built . | . . . Authchips . | . . . Time . | . . . Total Part Build Rating . | . . . Parts Repaired . | . . . Time . | . . . Parts Recycled . | . . . Recycled Matter . | . . . Retrieved Matter . | . . . Retrieved Components . | . . . Parts Scanalyzed . | . . . Part Schematics Acquired . | . . . Parts Damaged . | . . . Bothacking | -11 -10 -10 ------------ Run | Yrd Mat Min Used RIF Installer . | . . . Robots Hacked . | . . . Non-combat . | . . . Combat . | . . . Robot Hacks Applied . | . . . Relay Couplers Released . | . . . Fabnet Peak Effective % . | . . . Robots Rewired . | . . . Allies Hacked . | . . . Hacks Repelled . | . . . Allies | -11 -10 -10 -------- Run | Yrd Mat Min Total Allies . | . . . Largest Group . | . . . Highest-Rated Group . | . . . Highest-Rated Ally . | . . . Total Orders . | . . . Ally Attacks . | . . . Total Damage . | . . . Kills . | . . . Allies Corrupted . | . . . Allies Melted . | . . . Intel | -11 -10 -10 ------- Run | Yrd Mat Min Robot Analysis Total . | . . . Derelict Logs Recovered 1 | . . 1 Drone Launches . | . . . Drone Recoveries . | . . . Exploration | -11 -10 -10 ------------- Run | Yrd Mat Min Turns Passed 418 | 5 299 114 Spaces Moved 381 | 3 301 77 Core 3 | . . 3 Treads . | . . . Legs . | . . . Wheels 154 | 3 150 1 Hover 224 | . 151 73 Flight . | . . . Fastest Speed 56 | 90 56 56 Average Speed 81 | 90 73 108 Slowest Speed 250 | 90 180 250 Overloaded Moves . | . . . Propulsion Burnouts . | . . . Robots Hopped . | . . . Cave-ins Triggered . | . . . Exploration Rate (%) 26 | 2 49 29 Regions Visited 2 Branch Regions 1 Pre-discovered Areas . | . . . Known Exits Taken . | . . . Unknown Exits Taken 2 | 1 1 . Scrap Searched . | . . . Spaces Dug . | . . . Terrain Destroyed 47 | . 28 19 Melee . | . . . Projectile 1 | . . 1 AOE 46 | . 28 18 Terrain Rammed . | . . . Walls Destroyed . | . . . Machines Disabled . | . . . Actions | -11 -10 -10 --------- Run | Yrd Mat Min Total 456 | 4 355 97 Wait 6 | . 3 3 Move 379 | 2 300 77 Hop . | . . . Pick Up 9 | . 9 . Fast Attach 3 | . 1 2 Attach 4 | . 1 3 Detach . | . . . Swap 10 | 2 6 2 Drop 9 | . 8 1 Fire 36 | . 27 9 Melee . | . . . Ram . | . . . Kick . | . . . Crush . | . . . Escape Stasis . | . . . Rewire . | . . . Trap . | . . . Miscellaneous . | . . . Route ------- -11/Scrapyard -10/Materials (discovered 3 exits: [*Mat] / *Min x2) -10/Mines History --------- Turn | Location | Event 4 | -11/Scrapyard | Discovered new exit (range 1) 6 | -11/Scrapyard | Entered Materials 44 | -10/Materials | Discovered new exit (range 13) 96 | -10/Materials | Discovered new exit (range 16) 240 | -10/Materials | Discovered new exit (range 9) 305 | -10/Materials | Entered Mines 309 | -10/Mines | Met a Derelict who couldn't figure out how to use a Trap Extractor 311 | -10/Mines | Build established: Mutant 351 | -10/Mines | Assembled infested the area 356 | -10/Mines | Assisted by a Guerilla fighting off Assembled 372 | -10/Mines | Learned Materials stockpile data 414 | -10/Mines | Core integrity fell below 50% 416 | -10/Mines | Core integrity fell below 20% 419 | -10/Mines | Destroyed by D-53 Grenadier with Mini Grenade Launcher Last Messages --------------- coming from, and they're closing on this area, come on!" Acquired derelict log, extracted data. Data stored: Materials stockpile data. U-05 Engineer lays Concrete. K-01 Serf collects debris. U-05 Engineer lays Concrete. The unstable cave ceiling collapses. T-07 Excavator is excavating. The unstable cave ceiling collapses. K-01 Serf collects debris. Hover Unit destroyed. The unstable cave ceiling collapses. Grenade Launcher destroyed. Datajack destroyed. Com. Wheel destroyed. Lgt. Ion Engine destroyed. Wheel destroyed. The unstable cave ceiling collapses. Beam Cannon destroyed. Map ----- +----------------------------------------------------+ | | | | | | | | | | | | | | | | | | | | | | | | | | | ????????????????????????????????? | | ??????????###???????????????????? | | ?????#???? ???????????????????? | | ?????# ???????????????????? | | ?????# ??#???????###??????? | | ?????# """ """ #??????# ##?????? | | ?????# """ """ #?????# #?????? | | ?????# """ """ #????# #?????? | | ????## #???# #??????? | | ???## ##### #???????? | | ???# #???????? | | ???# # #???????? | | ???# @ #???????? | | ??# # ## ##???????? | | ??# ###???#????????? | | ??# #??????###????? | | ??# dd ##????# ##???? | | ??# ##### ###?? | | ??###### ## ##? | | ???????######## ## | | ????######????# | | ???## [ ##???## | | ???# != ! #????###### # | | ???# !^=! #?????????## | | ???## !!##??????????# ## | | ???### ####????????## ##?? | | ???# #????????# ##????? | | ???# #??####### #?????? | | ???# #??# #?????? | | ???# #??# ###### #????? | | ???# #??# #????## #???? | | ???# #??# #?????# #???? | | ???# #??# #????? # #?? | | ???### #####?# #????? ? | | ????# ### ###### # | | ????# ## | | ???## ## | +----------------------------------------------------+ Best States ------------- Heat Dissipation 25 Energy Generation 10 Energy Capacity 250 Matter Stores 300 Matter Capacity 300 Sight Range 16 Robot Scan Range 14 Terrain Scan Density 10 Weapon Shielding 33 Evasion (%) 53 Item Schematics ----------------- None Robot Schematics ------------------ None Fabricated ------------ Nothing Alien Tech Used ----------------- None Achievements -------------- None Challenges ------------ None Game ------ Seed TiamatReactiveMace Manual? 0 Play Time 00:07:34 Cumulative 52.3 hours Start 2024.11.21 @ 16:29:27 End 2024.11.21 @ 16:35:22 Sessions 1 Manual Loads 0 Difficulty Rogue Special Mode None Game No. 68 Rogue 24 Adventurer 44 Explorer 0 Win Type - Total 0 Types 0/0/0/0/0/0/0/0/0 Lore% 18 Gallery% 43 Achievement% 30 Wizard Run 0 Options --------- Layout 1 ASCII 0 Keyboard 1 Movement Vi Keybinds 0 Fullscreen 1 Font 24/Terminus Map View 50x40 Zoom Use 0% Tactical HUD 0 Map Filters NONE Filters NONE Steam 1 RUN: d60df2f8-a167-4314-9530-262ee3a54347